[Event "Titled Tuesday Blitz October 04 Early 2022"]
[White "Kim, Sergey"]
[Black "Wirig, Anthony"]
[WhiteFideId "13700570"]
[BlackFideId "615013"]
[WhiteElo "2626"]
[BlackElo "2474"]
[Result "0-1"]
[Round "06"]
[TimeControl "180+1"]
[Date "2022.10.04"]
[WhiteClock "0:00:08"]
[BlackClock "0:00:08"]

1. d4 {[%clk 0:03:00]}  Nf6 {[%clk 0:02:55]} 2. c4 {[%clk 0:03:00]}  e6 {[%clk 0:02:54]} 3. Nc3 {[%clk 0:03:01]}  Bb4 {[%clk 0:02:54]} 4. Qc2 {[%clk 0:03:00]}  d5 {[%clk 0:02:51]} 5. a3 {[%clk 0:03:00]}  Bxc3+ {[%clk 0:02:49]} 6. Qxc3 {[%clk 0:03:01]}  O-O {[%clk 0:02:46]} 7. Nf3 {[%clk 0:03:01]}  b6 {[%clk 0:02:39]} 8. g3 {[%clk 0:03:01]}  Ba6 {[%clk 0:02:35]} 9. cxd5 {[%clk 0:02:55]}  exd5 {[%clk 0:02:26]} 10. Bg2 {[%clk 0:02:50]}  Re8 {[%clk 0:02:22]} 11. Ne5 {[%clk 0:02:42]}  c5 {[%clk 0:01:56]} 12. e3 {[%clk 0:02:25]}  Nbd7 {[%clk 0:01:40]} 13. f4 {[%clk 0:01:45]}  Ne4 {[%clk 0:01:24]} 14. Bxe4 {[%clk 0:01:40]}  dxe4 {[%clk 0:01:25]} 15. Bd2 {[%clk 0:01:10]}  cxd4 {[%clk 0:01:02]} 16. Qxd4 {[%clk 0:01:07]}  Nxe5 {[%clk 0:01:00]} 17. fxe5 {[%clk 0:01:06]}  Qg5 {[%clk 0:00:45]} 18. Bc3 {[%clk 0:01:00]}  Rad8 {[%clk 0:00:35]} 19. Qxe4 {[%clk 0:00:55]}  Qh5 {[%clk 0:00:25]} 20. Qg2 {[%clk 0:00:28]}  Rd7 {[%clk 0:00:15]} 21. g4 {[%clk 0:00:27]}  Qg6 {[%clk 0:00:11]} 22. Kf2 {[%clk 0:00:20]}  Bb7 {[%clk 0:00:09]} 23. Qg3 {[%clk 0:00:18]}  Qc2+ {[%clk 0:00:07]} 24. Kg1 {[%clk 0:00:15]}  Qe4 {[%clk 0:00:04]} 25. Kf2 {[%clk 0:00:13]}  Qc2+ {[%clk 0:00:05]} 26. Kg1 {[%clk 0:00:13]}  Rd1+ {[%clk 0:00:05]} 27. Rxd1 {[%clk 0:00:12]}  Qxd1+ {[%clk 0:00:06]} 28. Be1 {[%clk 0:00:10]}  Bxh1 {[%clk 0:00:03]} 29. Kxh1 {[%clk 0:00:10]}  Qd5+ {[%clk 0:00:03]} 30. Kg1 {[%clk 0:00:10]}  Qxe5 {[%clk 0:00:03]} 31. Qxe5 {[%clk 0:00:10]}  Rxe5 {[%clk 0:00:04]} 32. Kf2 {[%clk 0:00:11]}  Rb5 {[%clk 0:00:04]} 33. Bc3 {[%clk 0:00:11]}  Rd5 {[%clk 0:00:04]} 34. e4 {[%clk 0:00:11]}  Rd7 {[%clk 0:00:04]} 35. Ke3 {[%clk 0:00:11]}  f6 {[%clk 0:00:05]} 36. h4 {[%clk 0:00:10]}  Kf7 {[%clk 0:00:05]} 37. g5 {[%clk 0:00:10]}  Ke6 {[%clk 0:00:06]} 38. gxf6 {[%clk 0:00:09]}  gxf6 {[%clk 0:00:07]} 39. h5 {[%clk 0:00:09]}  Rg7 {[%clk 0:00:07]} 40. Kf3 {[%clk 0:00:09]}  Rg5 {[%clk 0:00:07]} 41. h6 {[%clk 0:00:08]}  Rh5 {[%clk 0:00:07]} 42. Bd2 {[%clk 0:00:08]}  Rh2 {[%clk 0:00:08]} 0-1


[Site "https://www.chess.com"]

[Event "Titled Tuesday Blitz October 04 Early 2022"]
[White "Kravtsiv, Martyn"]
[Black "SahaNeelash"]
[WhiteFideId "14113147"]
[WhiteElo "2694"]
[BlackElo "2707"]
[Result "1-0"]
[Round "06"]
[TimeControl "180+1"]
[Date "2022.10.04"]
[WhiteClock "0:00:16"]
[BlackClock "0:00:20"]

1. e4 {[%clk 0:03:00]}  c5 {[%clk 0:02:59]} 2. Nf3 {[%clk 0:03:01]}  d6 {[%clk 0:03:00]} 3. Bb5+ {[%clk 0:03:00]}  Nd7 {[%clk 0:03:00]} 4. d4 {[%clk 0:02:59]}  cxd4 {[%clk 0:02:59]} 5. Qxd4 {[%clk 0:02:59]}  a6 {[%clk 0:03:00]} 6. Bxd7+ {[%clk 0:02:59]}  Qxd7 {[%clk 0:02:59]} 7. c4 {[%clk 0:02:55]}  e5 {[%clk 0:02:56]} 8. Qd3 {[%clk 0:02:55]}  f5 {[%clk 0:02:56]} 9. Nc3 {[%clk 0:02:53]}  Nf6 {[%clk 0:02:56]} 10. O-O {[%clk 0:02:37]}  fxe4 {[%clk 0:02:56]} 11. Nxe4 {[%clk 0:02:37]}  Nxe4 {[%clk 0:02:57]} 12. Qxe4 {[%clk 0:02:37]}  Qf5 {[%clk 0:02:58]} 13. Qe2 {[%clk 0:02:00]}  Be7 {[%clk 0:02:57]} 14. b3 {[%clk 0:01:58]}  O-O {[%clk 0:02:56]} 15. Ba3 {[%clk 0:01:58]}  Rf7 {[%clk 0:02:44]} 16. Rfe1 {[%clk 0:01:51]}  Qg6 {[%clk 0:02:43]} 17. Nd2 {[%clk 0:01:08]}  Bf5 {[%clk 0:02:30]} 18. Ne4 {[%clk 0:01:05]}  Raf8 {[%clk 0:02:30]} 19. f3 {[%clk 0:00:59]}  h5 {[%clk 0:02:27]} 20. Kh1 {[%clk 0:00:54]}  h4 {[%clk 0:02:25]} 21. h3 {[%clk 0:00:55]}  Bxh3 {[%clk 0:02:07]} 22. gxh3 {[%clk 0:00:49]}  Rxf3 {[%clk 0:02:08]} 23. Qg2 {[%clk 0:00:49]}  Qf5 {[%clk 0:02:03]} 24. Kg1 {[%clk 0:00:42]}  Kh8 {[%clk 0:00:56]} 25. Rad1 {[%clk 0:00:37]}  Rf6 {[%clk 0:00:54]} 26. Nxf6 {[%clk 0:00:25]}  Rg3 {[%clk 0:00:54]} 27. Ne4 {[%clk 0:00:22]}  Rxg2+ {[%clk 0:00:44]} 28. Kxg2 {[%clk 0:00:23]}  g5 {[%clk 0:00:30]} 29. Nf2 {[%clk 0:00:21]}  Qc2 {[%clk 0:00:23]} 30. Bxd6 {[%clk 0:00:19]}  Bxd6 {[%clk 0:00:21]} 31. Rxd6 {[%clk 0:00:20]}  Qxa2 {[%clk 0:00:22]} 32. Rxe5 {[%clk 0:00:20]}  Kg7 {[%clk 0:00:22]} 33. Rxg5+ {[%clk 0:00:20]}  Kf7 {[%clk 0:00:22]} 34. Rf5+ {[%clk 0:00:20]}  Ke7 {[%clk 0:00:23]} 35. Rd3 {[%clk 0:00:20]}  Qe2 {[%clk 0:00:21]} 36. Rff3 {[%clk 0:00:20]}  Qc2 {[%clk 0:00:20]} 37. Rfe3+ {[%clk 0:00:20]}  Kf6 {[%clk 0:00:20]} 38. Kf3 {[%clk 0:00:19]}  b5 {[%clk 0:00:19]} 39. cxb5 {[%clk 0:00:19]}  axb5 {[%clk 0:00:20]} 40. Ng4+ {[%clk 0:00:19]}  Kf7 {[%clk 0:00:20]} 41. Rd7+ {[%clk 0:00:18]}  Kf8 {[%clk 0:00:20]} 42. Rd4 {[%clk 0:00:17]}  Qc6+ {[%clk 0:00:19]} 43. Rde4 {[%clk 0:00:17]}  Kf7 {[%clk 0:00:20]} 44. Ne5+ {[%clk 0:00:16]} 1-0


[Site "https://www.chess.com"]

[Event "Titled Tuesday Blitz October 04 Early 2022"]
[White "Martinez Alcantara, Jose Eduardo"]
[Black "Le, Tuan Minh"]
[WhiteFideId "3805662"]
[BlackFideId "12401153"]
[WhiteElo "2703"]
[BlackElo "2530"]
[Result "1/2-1/2"]
[Round "06"]
[TimeControl "180+1"]
[Date "2022.10.04"]
[WhiteClock "0:00:49"]
[BlackClock "0:00:20"]

1. e4 {[%clk 0:03:00]}  c5 {[%clk 0:03:00]} 2. Nc3 {[%clk 0:03:01]}  Nc6 {[%clk 0:03:00]} 3. Bc4 {[%clk 0:03:01]}  e6 {[%clk 0:03:00]} 4. d3 {[%clk 0:03:02]}  Nf6 {[%clk 0:02:57]} 5. Nf3 {[%clk 0:03:00]}  a6 {[%clk 0:02:52]} 6. a3 {[%clk 0:03:00]}  d5 {[%clk 0:02:50]} 7. exd5 {[%clk 0:03:01]}  exd5 {[%clk 0:02:51]} 8. Ba2 {[%clk 0:03:02]}  h6 {[%clk 0:02:52]} 9. O-O {[%clk 0:03:02]}  Be6 {[%clk 0:02:52]} 10. Ne2 {[%clk 0:03:00]}  Bd6 {[%clk 0:02:50]} 11. Bf4 {[%clk 0:02:54]}  Bxf4 {[%clk 0:02:50]} 12. Nxf4 {[%clk 0:02:54]}  O-O {[%clk 0:02:47]} 13. h3 {[%clk 0:02:52]}  Qd6 {[%clk 0:02:47]} 14. Qd2 {[%clk 0:02:50]}  Bd7 {[%clk 0:02:40]} 15. Rfe1 {[%clk 0:02:49]}  Rfe8 {[%clk 0:02:40]} 16. c3 {[%clk 0:02:44]}  Rad8 {[%clk 0:02:30]} 17. Rxe8+ {[%clk 0:02:32]}  Rxe8 {[%clk 0:02:29]} 18. Re1 {[%clk 0:02:33]}  Rxe1+ {[%clk 0:02:29]} 19. Nxe1 {[%clk 0:02:34]}  d4 {[%clk 0:02:26]} 20. Nf3 {[%clk 0:02:23]}  b5 {[%clk 0:02:06]} 21. Ne2 {[%clk 0:02:12]}  dxc3 {[%clk 0:02:05]} 22. Qxc3 {[%clk 0:02:04]}  Nd5 {[%clk 0:02:04]} 23. Bxd5 {[%clk 0:01:59]}  Qxd5 {[%clk 0:02:05]} 24. Ng3 {[%clk 0:01:58]}  b4 {[%clk 0:01:43]} 25. Qc2 {[%clk 0:01:57]}  bxa3 {[%clk 0:00:51]} 26. bxa3 {[%clk 0:01:56]}  Bxh3 {[%clk 0:00:52]} 27. gxh3 {[%clk 0:01:41]}  Qxf3 {[%clk 0:00:51]} 28. Qxc5 {[%clk 0:01:41]}  Qf6 {[%clk 0:00:52]} 29. Qb6 {[%clk 0:01:10]}  a5 {[%clk 0:00:52]} 30. Qc5 {[%clk 0:00:52]}  Ne5 {[%clk 0:00:31]} 31. Qxa5 {[%clk 0:00:52]}  Nf3+ {[%clk 0:00:26]} 32. Kf1 {[%clk 0:00:52]}  Qa1+ {[%clk 0:00:24]} 33. Kg2 {[%clk 0:00:47]}  Nh4+ {[%clk 0:00:24]} 34. Kh2 {[%clk 0:00:48]}  Nf3+ {[%clk 0:00:24]} 35. Kg2 {[%clk 0:00:48]}  Nh4+ {[%clk 0:00:19]} 36. Kh2 {[%clk 0:00:48]}  Nf3+ {[%clk 0:00:20]} 37. Kg2 {[%clk 0:00:49]} 1/2-1/2


[Site "https://www.chess.com"]

[Event "Titled Tuesday Blitz October 04 Early 2022"]
[White "Milikow, Yoav"]
[Black "Shimanov, Aleksandr"]
[WhiteFideId "2822237"]
[BlackFideId "4198603"]
[WhiteElo "2341"]
[BlackElo "2605"]
[Result "0-1"]
[Round "06"]
[TimeControl "180+1"]
[Date "2022.10.04"]
[WhiteClock "0:00:02"]
[BlackClock "0:00:28"]

1. d4 {[%clk 0:03:00]}  Nf6 {[%clk 0:02:58]} 2. c4 {[%clk 0:03:01]}  g6 {[%clk 0:02:59]} 3. Nc3 {[%clk 0:03:00]}  Bg7 {[%clk 0:03:00]} 4. e4 {[%clk 0:03:00]}  d6 {[%clk 0:03:00]} 5. Be2 {[%clk 0:03:01]}  O-O {[%clk 0:03:00]} 6. Be3 {[%clk 0:03:01]}  Na6 {[%clk 0:02:46]} 7. Nf3 {[%clk 0:02:47]}  e5 {[%clk 0:02:46]} 8. d5 {[%clk 0:02:46]}  Ng4 {[%clk 0:02:42]} 9. Bg5 {[%clk 0:02:46]}  f6 {[%clk 0:02:42]} 10. Bh4 {[%clk 0:02:46]}  h5 {[%clk 0:02:42]} 11. h3 {[%clk 0:02:46]}  Nh6 {[%clk 0:02:42]} 12. Nd2 {[%clk 0:02:28]}  c5 {[%clk 0:02:40]} 13. g4 {[%clk 0:02:21]}  hxg4 {[%clk 0:02:41]} 14. hxg4 {[%clk 0:02:22]}  Nf7 {[%clk 0:02:41]} 15. Nf1 {[%clk 0:02:14]}  Bh6 {[%clk 0:02:40]} 16. f3 {[%clk 0:02:14]}  Kg7 {[%clk 0:02:39]} 17. Bf2 {[%clk 0:02:13]}  Bd7 {[%clk 0:02:38]} 18. Be3 {[%clk 0:02:13]}  Rh8 {[%clk 0:02:23]} 19. Bxh6+ {[%clk 0:02:11]}  Nxh6 {[%clk 0:02:23]} 20. Ng3 {[%clk 0:02:05]}  Nf7 {[%clk 0:02:14]} 21. Kd2 {[%clk 0:02:02]}  Ng5 {[%clk 0:02:06]} 22. Qb3 {[%clk 0:02:01]}  b6 {[%clk 0:02:03]} 23. Nb5 {[%clk 0:01:58]}  Bxb5 {[%clk 0:01:58]} 24. Qxb5 {[%clk 0:01:55]}  Nb8 {[%clk 0:01:45]} 25. Rxh8 {[%clk 0:01:44]}  Qxh8 {[%clk 0:01:46]} 26. Rh1 {[%clk 0:01:43]}  Qd8 {[%clk 0:01:46]} 27. Bd1 {[%clk 0:01:33]}  a6 {[%clk 0:01:46]} 28. Qb3 {[%clk 0:01:32]}  Nd7 {[%clk 0:01:45]} 29. Ke2 {[%clk 0:01:30]}  b5 {[%clk 0:01:41]} 30. Kf2 {[%clk 0:01:23]}  Rb8 {[%clk 0:01:41]} 31. cxb5 {[%clk 0:01:13]}  axb5 {[%clk 0:01:42]} 32. Kf1 {[%clk 0:01:10]}  Qa5 {[%clk 0:01:39]} 33. Qc2 {[%clk 0:01:03]}  Qxa2 {[%clk 0:01:34]} 34. Qh2 {[%clk 0:01:02]}  Rg8 {[%clk 0:01:31]} 35. Qd2 {[%clk 0:00:47]}  Ra8 {[%clk 0:01:16]} 36. Qh2 {[%clk 0:00:45]}  Qb1 {[%clk 0:01:13]} 37. Kg2 {[%clk 0:00:42]}  Qxb2+ {[%clk 0:01:11]} 38. Be2 {[%clk 0:00:42]}  c4 {[%clk 0:00:50]} 39. Qg1 {[%clk 0:00:33]}  Nc5 {[%clk 0:00:48]} 40. Qe3 {[%clk 0:00:33]}  Ra3 {[%clk 0:00:45]} 41. Qf2 {[%clk 0:00:33]}  Nd3 {[%clk 0:00:41]} 42. Qb6 {[%clk 0:00:27]}  Nf4+ {[%clk 0:00:40]} 43. Kf1 {[%clk 0:00:24]}  Qa1+ {[%clk 0:00:35]} 44. Kf2 {[%clk 0:00:20]}  Qd4+ {[%clk 0:00:35]} 45. Qxd4 {[%clk 0:00:19]}  exd4 {[%clk 0:00:36]} 46. Rb1 {[%clk 0:00:19]}  Ra2 {[%clk 0:00:33]} 47. Kf1 {[%clk 0:00:15]}  d3 {[%clk 0:00:33]} 48. Bd1 {[%clk 0:00:16]}  Ngh3 {[%clk 0:00:32]} 49. Nh1 {[%clk 0:00:13]}  Ng2 {[%clk 0:00:30]} 50. Rxb5 {[%clk 0:00:10]}  Ne3+ {[%clk 0:00:30]} 51. Ke1 {[%clk 0:00:11]}  Nf4 {[%clk 0:00:29]} 52. Rb7+ {[%clk 0:00:05]}  Kh6 {[%clk 0:00:28]} 53. Ra7 {[%clk 0:00:02]} 0-1


[Site "https://www.chess.com"]

[Event "Titled Tuesday Blitz October 04 Early 2022"]
[White "Rostovtsev, Dmitry"]
[Black "Jobava, Baadur"]
[WhiteFideId "34278320"]
[BlackFideId "13601520"]
[WhiteElo "2251"]
[BlackElo "2582"]
[Result "0-1"]
[Round "06"]
[TimeControl "180+1"]
[Date "2022.10.04"]
[WhiteClock "0:00:02"]
[BlackClock "0:00:59"]

1. e4 {[%clk 0:03:00]}  d6 {[%clk 0:03:00]} 2. d4 {[%clk 0:02:59]}  Nf6 {[%clk 0:03:01]} 3. Nc3 {[%clk 0:02:59]}  e5 {[%clk 0:03:02]} 4. Nf3 {[%clk 0:02:57]}  Nbd7 {[%clk 0:03:02]} 5. Bc4 {[%clk 0:02:57]}  Be7 {[%clk 0:03:02]} 6. O-O {[%clk 0:02:57]}  O-O {[%clk 0:03:02]} 7. Re1 {[%clk 0:02:57]}  c6 {[%clk 0:03:00]} 8. a4 {[%clk 0:02:57]}  a5 {[%clk 0:03:00]} 9. h3 {[%clk 0:02:56]}  h6 {[%clk 0:03:00]} 10. Bf1 {[%clk 0:02:55]}  Re8 {[%clk 0:03:00]} 11. Be3 {[%clk 0:02:52]}  Qc7 {[%clk 0:02:58]} 12. Rc1 {[%clk 0:02:33]}  Bf8 {[%clk 0:02:57]} 13. d5 {[%clk 0:02:32]}  Nb6 {[%clk 0:02:54]} 14. Bxb6 {[%clk 0:02:26]}  Qxb6 {[%clk 0:02:54]} 15. Nd2 {[%clk 0:02:23]}  Qxb2 {[%clk 0:02:45]} 16. Re3 {[%clk 0:02:19]}  Qb6 {[%clk 0:02:45]} 17. Nc4 {[%clk 0:02:18]}  Qc7 {[%clk 0:02:45]} 18. Rb1 {[%clk 0:02:17]}  Nd7 {[%clk 0:02:37]} 19. Rg3 {[%clk 0:02:16]}  Rb8 {[%clk 0:02:36]} 20. Qd2 {[%clk 0:02:14]}  g6 {[%clk 0:02:34]} 21. h4 {[%clk 0:02:11]}  Nc5 {[%clk 0:02:32]} 22. dxc6 {[%clk 0:02:08]}  bxc6 {[%clk 0:02:29]} 23. Rxb8 {[%clk 0:02:08]}  Qxb8 {[%clk 0:02:30]} 24. Nxa5 {[%clk 0:02:09]}  Qc7 {[%clk 0:02:29]} 25. Nc4 {[%clk 0:02:03]}  h5 {[%clk 0:02:29]} 26. Be2 {[%clk 0:02:00]}  Kh7 {[%clk 0:02:28]} 27. a5 {[%clk 0:01:30]}  Ne6 {[%clk 0:02:23]} 28. Bf1 {[%clk 0:01:19]}  Nd4 {[%clk 0:02:18]} 29. Ne2 {[%clk 0:01:17]}  Ne6 {[%clk 0:02:06]} 30. Nc3 {[%clk 0:01:05]}  Rd8 {[%clk 0:02:05]} 31. Nb6 {[%clk 0:00:55]}  Bh6 {[%clk 0:01:59]} 32. Qd1 {[%clk 0:00:55]}  Bb7 {[%clk 0:01:58]} 33. Bc4 {[%clk 0:00:54]}  Nd4 {[%clk 0:01:42]} 34. Ne2 {[%clk 0:00:52]}  d5 {[%clk 0:01:38]} 35. exd5 {[%clk 0:00:26]}  cxd5 {[%clk 0:01:39]} 36. Bd3 {[%clk 0:00:21]}  Ne6 {[%clk 0:01:36]} 37. Nc3 {[%clk 0:00:19]}  e4 {[%clk 0:01:32]} 38. Nb5 {[%clk 0:00:18]}  Qe5 {[%clk 0:01:29]} 39. Bf1 {[%clk 0:00:17]}  d4 {[%clk 0:01:27]} 40. Bc4 {[%clk 0:00:16]}  e3 {[%clk 0:01:25]} 41. Qe2 {[%clk 0:00:16]}  exf2+ {[%clk 0:01:25]} 42. Qxf2 {[%clk 0:00:14]}  Kg7 {[%clk 0:00:59]} 43. Bxe6 {[%clk 0:00:05]}  fxe6 {[%clk 0:01:00]} 44. Rf3 {[%clk 0:00:02]}  Be3 {[%clk 0:00:59]} 45. Rxe3 {[%clk 0:00:02]}  dxe3 {[%clk 0:00:59]} 46. Qe2 {[%clk 0:00:01]}  Rd2 {[%clk 0:00:59]} 47. Qc4 {[%clk 0:00:02]}  Rd1+ {[%clk 0:00:59]} 0-1


[Site "https://www.chess.com"]

[Event "Titled Tuesday Blitz October 04 Early 2022"]
[White "Sarana, Alexey"]
[Black "Wieczorek, Oskar"]
[WhiteFideId "24133795"]
[BlackFideId "1133950"]
[WhiteElo "2689"]
[BlackElo "2404"]
[Result "1-0"]
[Round "06"]
[TimeControl "180+1"]
[Date "2022.10.04"]
[WhiteClock "0:00:33"]
[BlackClock "0:00:48"]

1. c4 {[%clk 0:03:00]}  Nf6 {[%clk 0:02:59]} 2. Nc3 {[%clk 0:02:58]}  g6 {[%clk 0:02:58]} 3. d4 {[%clk 0:02:57]}  c5 {[%clk 0:02:58]} 4. d5 {[%clk 0:02:57]}  Bg7 {[%clk 0:02:57]} 5. e4 {[%clk 0:02:57]}  d6 {[%clk 0:02:57]} 6. Nf3 {[%clk 0:02:58]}  O-O {[%clk 0:02:58]} 7. Be2 {[%clk 0:02:58]}  e6 {[%clk 0:02:57]} 8. Be3 {[%clk 0:02:59]}  Re8 {[%clk 0:02:58]} 9. Nd2 {[%clk 0:02:57]}  Na6 {[%clk 0:02:58]} 10. h3 {[%clk 0:02:50]}  Nc7 {[%clk 0:02:58]} 11. O-O {[%clk 0:02:37]}  exd5 {[%clk 0:02:51]} 12. cxd5 {[%clk 0:02:36]}  b5 {[%clk 0:02:45]} 13. Qc2 {[%clk 0:02:14]}  b4 {[%clk 0:02:39]} 14. Nb5 {[%clk 0:02:12]}  Nxb5 {[%clk 0:02:37]} 15. Bxb5 {[%clk 0:02:13]}  Bd7 {[%clk 0:02:37]} 16. Bxd7 {[%clk 0:02:09]}  Nxd7 {[%clk 0:02:37]} 17. Bf4 {[%clk 0:01:56]}  Nb6 {[%clk 0:02:28]} 18. a3 {[%clk 0:01:49]}  a5 {[%clk 0:02:24]} 19. axb4 {[%clk 0:01:48]}  axb4 {[%clk 0:02:14]} 20. Rxa8 {[%clk 0:01:47]}  Nxa8 {[%clk 0:02:13]} 21. Nc4 {[%clk 0:01:47]}  Bf8 {[%clk 0:02:12]} 22. Rd1 {[%clk 0:00:55]}  Nb6 {[%clk 0:02:11]} 23. Na5 {[%clk 0:00:51]}  Nxd5 {[%clk 0:02:06]} 24. Nc6 {[%clk 0:00:45]}  Qf6 {[%clk 0:02:05]} 25. Bxd6 {[%clk 0:00:40]}  Ne3 {[%clk 0:01:49]} 26. e5 {[%clk 0:00:35]}  Nxc2 {[%clk 0:01:04]} 27. exf6 {[%clk 0:00:35]}  Re1+ {[%clk 0:00:52]} 28. Rxe1 {[%clk 0:00:34]}  Nxe1 {[%clk 0:00:52]} 29. Ne7+ {[%clk 0:00:35]}  Kh8 {[%clk 0:00:52]} 30. Bxc5 {[%clk 0:00:35]}  Nd3 {[%clk 0:00:52]} 31. Bd4 {[%clk 0:00:36]}  Nf4 {[%clk 0:00:49]} 32. Kf1 {[%clk 0:00:34]}  Ne6 {[%clk 0:00:49]} 33. Be5 {[%clk 0:00:35]}  h5 {[%clk 0:00:48]} 34. Ke2 {[%clk 0:00:35]}  Kh7 {[%clk 0:00:47]} 35. Kd3 {[%clk 0:00:34]}  g5 {[%clk 0:00:48]} 36. Kc4 {[%clk 0:00:33]}  g4 {[%clk 0:00:47]} 37. hxg4 {[%clk 0:00:33]}  hxg4 {[%clk 0:00:48]} 38. Kxb4 {[%clk 0:00:33]} 1-0


[Site "https://www.chess.com"]

[Event "Titled Tuesday Blitz October 04 Early 2022"]
[White "Srihari L R"]
[Black "Jones, Gawain C B"]
[WhiteFideId "46617116"]
[BlackFideId "409561"]
[WhiteElo "2336"]
[BlackElo "2657"]
[Result "0-1"]
[Round "06"]
[TimeControl "180+1"]
[Date "2022.10.04"]
[WhiteClock "0:00:13"]
[BlackClock "0:00:41"]

1. c4 {[%clk 0:03:00]}  Nf6 {[%clk 0:02:55]} 2. Nc3 {[%clk 0:03:00]}  g6 {[%clk 0:02:54]} 3. d4 {[%clk 0:03:00]}  Bg7 {[%clk 0:02:54]} 4. e4 {[%clk 0:02:59]}  d6 {[%clk 0:02:55]} 5. h3 {[%clk 0:03:00]}  O-O {[%clk 0:02:53]} 6. Be3 {[%clk 0:02:59]}  e5 {[%clk 0:02:53]} 7. d5 {[%clk 0:02:56]}  Na6 {[%clk 0:02:54]} 8. Nf3 {[%clk 0:02:53]}  Nh5 {[%clk 0:02:50]} 9. g3 {[%clk 0:02:53]}  Qe8 {[%clk 0:02:49]} 10. Be2 {[%clk 0:02:51]}  f5 {[%clk 0:02:49]} 11. exf5 {[%clk 0:02:51]}  gxf5 {[%clk 0:02:50]} 12. Nxe5 {[%clk 0:02:41]}  Nxg3 {[%clk 0:02:31]} 13. fxg3 {[%clk 0:02:41]}  dxe5 {[%clk 0:02:21]} 14. Qd2 {[%clk 0:02:25]}  f4 {[%clk 0:02:19]} 15. Bf2 {[%clk 0:02:22]}  f3 {[%clk 0:01:51]} 16. Bd3 {[%clk 0:01:52]}  e4 {[%clk 0:01:51]} 17. Nxe4 {[%clk 0:01:52]}  Bf5 {[%clk 0:01:48]} 18. O-O-O {[%clk 0:01:51]}  Bxe4 {[%clk 0:01:40]} 19. Rhe1 {[%clk 0:01:42]}  Bxd3 {[%clk 0:01:18]} 20. Rxe8 {[%clk 0:01:39]}  Raxe8 {[%clk 0:01:19]} 21. Qxd3 {[%clk 0:01:39]}  Re2 {[%clk 0:01:16]} 22. Bd4 {[%clk 0:01:39]}  Nb4 {[%clk 0:01:10]} 23. Qb3 {[%clk 0:01:32]}  f2 {[%clk 0:00:56]} 24. Bxg7 {[%clk 0:00:15]}  Kxg7 {[%clk 0:00:54]} 25. Qxb4 {[%clk 0:00:15]}  f1=Q {[%clk 0:00:53]} 26. Qxb7 {[%clk 0:00:13]}  Re1 {[%clk 0:00:41]} 27. Qxc7+ {[%clk 0:00:13]}  Rf7 {[%clk 0:00:41]} 0-1


[Site "https://www.chess.com"]

[Event "Titled Tuesday Blitz October 04 Early 2022"]
[White "Terry, Renato"]
[Black "Gritsenko, Nikolai"]
[WhiteFideId "3803457"]
[BlackFideId "14112493"]
[WhiteElo "2577"]
[BlackElo "2389"]
[Result "1-0"]
[Round "06"]
[TimeControl "180+1"]
[Date "2022.10.04"]
[WhiteClock "0:00:51"]
[BlackClock "0:00:14"]

1. d4 {[%clk 0:02:59]}  d5 {[%clk 0:02:59]} 2. Nf3 {[%clk 0:02:58]}  Nc6 {[%clk 0:02:59]} 3. Bf4 {[%clk 0:02:57]}  Bg4 {[%clk 0:02:59]} 4. e3 {[%clk 0:02:58]}  e6 {[%clk 0:02:59]} 5. c4 {[%clk 0:02:54]}  Bd6 {[%clk 0:02:58]} 6. Bg3 {[%clk 0:02:55]}  Nge7 {[%clk 0:02:54]} 7. Nc3 {[%clk 0:02:54]}  O-O {[%clk 0:02:51]} 8. Bh4 {[%clk 0:02:55]}  dxc4 {[%clk 0:02:46]} 9. Bxc4 {[%clk 0:02:55]}  Qe8 {[%clk 0:02:40]} 10. h3 {[%clk 0:02:49]}  Bh5 {[%clk 0:02:37]} 11. g4 {[%clk 0:02:49]}  Bg6 {[%clk 0:02:35]} 12. Rc1 {[%clk 0:02:35]}  a6 {[%clk 0:02:32]} 13. a3 {[%clk 0:02:33]}  Kh8 {[%clk 0:02:26]} 14. Qe2 {[%clk 0:02:15]}  e5 {[%clk 0:02:21]} 15. d5 {[%clk 0:02:14]}  Nd8 {[%clk 0:02:15]} 16. e4 {[%clk 0:02:13]}  f6 {[%clk 0:02:03]} 17. Bg3 {[%clk 0:02:10]}  Nf7 {[%clk 0:01:52]} 18. h4 {[%clk 0:02:05]}  h5 {[%clk 0:01:48]} 19. g5 {[%clk 0:01:53]}  f5 {[%clk 0:01:39]} 20. Bd3 {[%clk 0:01:52]}  f4 {[%clk 0:01:37]} 21. Bh2 {[%clk 0:01:52]}  b5 {[%clk 0:01:29]} 22. Nd2 {[%clk 0:01:47]}  c5 {[%clk 0:01:26]} 23. b3 {[%clk 0:01:33]}  c4 {[%clk 0:01:11]} 24. bxc4 {[%clk 0:01:33]}  Bxa3 {[%clk 0:01:10]} 25. Rb1 {[%clk 0:01:33]}  Rc8 {[%clk 0:01:02]} 26. Rb3 {[%clk 0:01:26]}  b4 {[%clk 0:01:02]} 27. Ncb1 {[%clk 0:01:24]}  Nd6 {[%clk 0:00:38]} 28. f3 {[%clk 0:01:18]}  Qa4 {[%clk 0:00:29]} 29. Nxa3 {[%clk 0:01:16]}  bxa3 {[%clk 0:00:28]} 30. O-O {[%clk 0:01:17]}  Rb8 {[%clk 0:00:27]} 31. Qd1 {[%clk 0:01:15]}  Rxb3 {[%clk 0:00:22]} 32. Qxb3 {[%clk 0:01:16]}  Qxb3 {[%clk 0:00:21]} 33. Nxb3 {[%clk 0:01:17]}  Rb8 {[%clk 0:00:20]} 34. Nc5 {[%clk 0:01:06]}  Rb2 {[%clk 0:00:18]} 35. Ra1 {[%clk 0:00:57]}  a2 {[%clk 0:00:17]} 36. Na4 {[%clk 0:00:58]}  Rd2 {[%clk 0:00:16]} 37. Bf1 {[%clk 0:00:58]}  Nxe4 {[%clk 0:00:14]} 38. fxe4 {[%clk 0:00:58]}  Bxe4 {[%clk 0:00:14]} 39. Nc3 {[%clk 0:00:58]}  Bb1 {[%clk 0:00:13]} 40. Nxb1 {[%clk 0:00:58]}  axb1=Q {[%clk 0:00:14]} 41. Rxb1 {[%clk 0:00:59]}  Nf5 {[%clk 0:00:14]} 42. g6 {[%clk 0:00:51]} 1-0


[Site "https://www.chess.com"]